Workbook

Sheet 浴室整修成本
B1: 浴室整修成本工作表
B2: 注意：實際金額與預估金額不符時，表格中的 [差額] 欄便會顯示內容。紅色數字表示超出預估金額 (負數)，黑色數字表示低於預估金額 (正數)。
E3: 支出細目 (NT$) | H3: 總成本 (NT$)
B4: 區域 | C4: 項目 | D4: 數量 | E4: 預估 | F4: 實際 | G4: 差額 | H4: 預估 | I4: 實際 | J4: 差額
B5: 浴缸/淋浴 | C5: 浴缸，鑄鐵，5 英呎，標準 | D5: 1 | E5: NT$250.00 | F5: =RANDBETWEEN(E5+2,E5+20) -> NT$253.00 | G5: =IFERROR(成本[[#This Row],[預估]]-成本[[#This Row],[實際]], "") -> (NT$3.00) | H5: =IFERROR(成本[[#This Row],[數量]]*成本[[#This Row],[預估]], "") -> NT$250.00 | I5: =IFERROR(成本[[#This Row],[數量]]*成本[[#This Row],[實際]], "") -> NT$253.00 | J5: =IFERROR(成本[[#This Row],[預估 ]]-成本[[#This Row],[實際 ]], "") -> (NT$3.00)
B6: 浴缸/淋浴 | C6: 淋浴間門板，絞鏈門，標準 | D6: 1 | E6: NT$200.00 | F6: NT$202.00 | G6: =IFERROR(成本[[#This Row],[預估]]-成本[[#This Row],[實際]], "") -> (NT$2.00) | H6: =IFERROR(成本[[#This Row],[數量]]*成本[[#This Row],[預估]], "") -> NT$200.00 | I6: =IFERROR(成本[[#This Row],[數量]]*成本[[#This Row],[實際]], "") -> NT$202.00 | J6: =IFERROR(成本[[#This Row],[預估 ]]-成本[[#This Row],[實際 ]], "") -> (NT$2.00)
B7: 浴缸/淋浴 | C7: 蓮蓬頭，標準 | D7: 1 | E7: NT$50.00 | F7: NT$66.00 | G7: =IFERROR(成本[[#This Row],[預估]]-成本[[#This Row],[實際]], "") -> (NT$16.00) | H7: =IFERROR(成本[[#This Row],[數量]]*成本[[#This Row],[預估]], "") -> NT$50.00 | I7: =IFERROR(成本[[#This Row],[數量]]*成本[[#This Row],[實際]], "") -> NT$66.00 | J7: =IFERROR(成本[[#This Row],[預估 ]]-成本[[#This Row],[實際 ]], "") -> (NT$16.00)
B8: 浴缸/淋浴 | C8: 浴缸周圍牆面，標準 | D8: 1 | E8: NT$200.00 | F8: NT$206.00 | G8: =IFERROR(成本[[#This Row],[預估]]-成本[[#This Row],[實際]], "") -> (NT$6.00) | H8: =IFERROR(成本[[#This Row],[數量]]*成本[[#This Row],[預估]], "") -> NT$200.00 | I8: =IFERROR(成本[[#This Row],[數量]]*成本[[#This Row],[實際]], "") -> NT$206.00 | J8: =IFERROR(成本[[#This Row],[預估 ]]-成本[[#This Row],[實際 ]], "") -> (NT$6.00)
B9: 收納櫃 | C9: 24 吋藥櫃，豪華 | D9: 1 | E9: NT$200.00 | F9: NT$218.00 | G9: =IFERROR(成本[[#This Row],[預估]]-成本[[#This Row],[實際]], "") -> (NT$18.00) | H9: =IFERROR(成本[[#This Row],[數量]]*成本[[#This Row],[預估]], "") -> NT$200.00 | I9: =IFERROR(成本[[#This Row],[數量]]*成本[[#This Row],[實際]], "") -> NT$218.00 | J9: =IFERROR(成本[[#This Row],[預估 ]]-成本[[#This Row],[實際 ]], "") -> (NT$18.00)
B10: 收納櫃 | C10: 30 吋梳妝臺組，標準 | D10: 2 | E10: NT$100.00 | F10: NT$104.00 | G10: =IFERROR(成本[[#This Row],[預估]]-成本[[#This Row],[實際]], "") -> (NT$4.00) | H10: =IFERROR(成本[[#This Row],[數量]]*成本[[#This Row],[預估]], "") -> NT$200.00 | I10: =IFERROR(成本[[#This Row],[數量]]*成本[[#This Row],[實際]], "") -> NT$208.00 | J10: =IFERROR(成本[[#This Row],[預估 ]]-成本[[#This Row],[實際 ]], "") -> (NT$8.00)
B11: 洗手台 | C11: 磁磚，豪華 (數量以直線距離的英呎計算) | D11: 5 | E11: NT$22.50 | F11: NT$41.00 | G11: =IFERROR(成本[[#This Row],[預估]]-成本[[#This Row],[實際]], "") -> (NT$18.50) | H11: =IFERROR(成本[[#This Row],[數量]]*成本[[#This Row],[預估]], "") -> NT$112.50 | I11: =IFERROR(成本[[#This Row],[數量]]*成本[[#This Row],[實際]], "") -> NT$205.00 | J11: =IFERROR(成本[[#This Row],[預估 ]]-成本[[#This Row],[實際 ]], "") -> (NT$92.50)
B12: 水龍頭 | C12: 水龍頭，浴缸，標準 | D12: 1 | E12: NT$90.00 | F12: NT$102.00 | G12: =IFERROR(成本[[#This Row],[預估]]-成本[[#This Row],[實際]], "") -> (NT$12.00) | H12: =IFERROR(成本[[#This Row],[數量]]*成本[[#This Row],[預估]], "") -> NT$90.00 | I12: =IFERROR(成本[[#This Row],[數量]]*成本[[#This Row],[實際]], "") -> NT$102.00 | J12: =IFERROR(成本[[#This Row],[預估 ]]-成本[[#This Row],[實際 ]], "") -> (NT$12.00)
B13: 水龍頭 | C13: 水龍頭，淋浴，單把手，標準 | D13: 1 | E13: NT$115.00 | F13: NT$123.00 | G13: =IFERROR(成本[[#This Row],[預估]]-成本[[#This Row],[實際]], "") -> (NT$8.00) | H13: =IFERROR(成本[[#This Row],[數量]]*成本[[#This Row],[預估]], "") -> NT$115.00 | I13: =IFERROR(成本[[#This Row],[數量]]*成本[[#This Row],[實際]], "") -> NT$123.00 | J13: =IFERROR(成本[[#This Row],[預估 ]]-成本[[#This Row],[實際 ]], "") -> (NT$8.00)
B14: 水龍頭 | C14: 水槽水龍頭，標準 | D14: 1 | E14: NT$95.00 | F14: NT$106.00 | G14: =IFERROR(成本[[#This Row],[預估]]-成本[[#This Row],[實際]], "") -> (NT$11.00) | H14: =IFERROR(成本[[#This Row],[數量]]*成本[[#This Row],[預估]], "") -> NT$95.00 | I14: =IFERROR(成本[[#This Row],[數量]]*成本[[#This Row],[實際]], "") -> NT$106.00 | J14: =IFERROR(成本[[#This Row],[預估 ]]-成本[[#This Row],[實際 ]], "") -> (NT$11.00)
B15: 地板 | C15: 磁磚，標準 (數量以平方英呎計算) | D15: 35 | E15: NT$12.00 | F15: NT$23.00 | G15: =IFERROR(成本[[#This Row],[預估]]-成本[[#This Row],[實際]], "") -> (NT$11.00) | H15: =IFERROR(成本[[#This Row],[數量]]*成本[[#This Row],[預估]], "") -> NT$420.00 | I15: =IFERROR(成本[[#This Row],[數量]]*成本[[#This Row],[實際]], "") -> NT$805.00 | J15: =IFERROR(成本[[#This Row],[預估 ]]-成本[[#This Row],[實際 ]], "") -> (NT$385.00)
B16: 硬體 | C16: 毛巾架，標準 | D16: 2 | E16: NT$15.00 | F16: NT$21.00 | G16: =IFERROR(成本[[#This Row],[預估]]-成本[[#This Row],[實際]], "") -> (NT$6.00) | H16: =IFERROR(成本[[#This Row],[數量]]*成本[[#This Row],[預估]], "") -> NT$30.00 | I16: =IFERROR(成本[[#This Row],[數量]]*成本[[#This Row],[實際]], "") -> NT$42.00 | J16: =IFERROR(成本[[#This Row],[預估 ]]-成本[[#This Row],[實際 ]], "") -> (NT$12.00)
B17: 硬體 | C17: 衛生紙架 | D17: 1 | E17: NT$10.00 | F17: NT$17.00 | G17: =IFERROR(成本[[#This Row],[預估]]-成本[[#This Row],[實際]], "") -> (NT$7.00) | H17: =IFERROR(成本[[#This Row],[數量]]*成本[[#This Row],[預估]], "") -> NT$10.00 | I17: =IFERROR(成本[[#This Row],[數量]]*成本[[#This Row],[實際]], "") -> NT$17.00 | J17: =IFERROR(成本[[#This Row],[預估 ]]-成本[[#This Row],[實際 ]], "") -> (NT$7.00)
B18: 照明 | C18: 嵌燈，標準 | D18: 4 | E18: NT$25.00 | F18: NT$43.00 | G18: =IFERROR(成本[[#This Row],[預估]]-成本[[#This Row],[實際]], "") -> (NT$18.00) | H18: =IFERROR(成本[[#This Row],[數量]]*成本[[#This Row],[預估]], "") -> NT$100.00 | I18: =IFERROR(成本[[#This Row],[數量]]*成本[[#This Row],[實際]], "") -> NT$172.00 | J18: =IFERROR(成本[[#This Row],[預估 ]]-成本[[#This Row],[實際 ]], "") -> (NT$72.00)
B19: 水槽 | C19: 盥洗室，標準 | D19: 2 | E19: NT$60.00 | F19: NT$70.00 | G19: =IFERROR(成本[[#This Row],[預估]]-成本[[#This Row],[實際]], "") -> (NT$10.00) | H19: =IFERROR(成本[[#This Row],[數量]]*成本[[#This Row],[預估]], "") -> NT$120.00 | I19: =IFERROR(成本[[#This Row],[數量]]*成本[[#This Row],[實際]], "") -> NT$140.00 | J19: =IFERROR(成本[[#This Row],[預估 ]]-成本[[#This Row],[實際 ]], "") -> (NT$20.00)
B20: 其他 | D20: 1 | E20: NT$20.00 | F20: NT$28.00 | G20: =IFERROR(成本[[#This Row],[預估]]-成本[[#This Row],[實際]], "") -> (NT$8.00) | H20: =IFERROR(成本[[#This Row],[數量]]*成本[[#This Row],[預估]], "") -> NT$20.00 | I20: =IFERROR(成本[[#This Row],[數量]]*成本[[#This Row],[實際]], "") -> NT$28.00 | J20: =IFERROR(成本[[#This Row],[預估 ]]-成本[[#This Row],[實際 ]], "") -> (NT$8.00)
B21: 小計 | E21: =SUBTOTAL(109,成本[預估]) -> NT$1,464.50 | F21: =SUBTOTAL(109,成本[實際]) -> NT$1,623.00 | G21: =SUBTOTAL(109,成本[差額]) -> (NT$158.50) | H21: =SUBTOTAL(109,成本[[預估 ]]) -> NT$2,212.50 | I21: =SUBTOTAL(109,成本[[實際 ]]) -> NT$2,893.00 | J21: =SUBTOTAL(109,成本[[差額 ]]) -> (NT$680.50)
B23: 非預期成本 (預估外加 30%) | E23: =IFERROR(成本[[#Totals],[預估]]*0.3, "") -> NT$439.35 | H23: =IFERROR(成本[[#Totals],[預估 ]]*0.3, "") -> NT$663.75
B24: 總成本 | E24: =IFERROR(SUM(E21:E21), "") -> NT$1,464.50 | H24: =IFERROR(SUM(成本[[#Totals],[預估 ]],溢額), "") -> NT$2,876.25
